Cogmind - Beta 15 @@@ ROGUE MODE // 2025.06.21 @ 22:19:55 Player: Burcsboon Result: Destroyed by Y-54 Guardian with Gatling Laser Performance ------------- Evolutions (3) 1500 Regions Visited (6) 1200 Robots Destroyed (36) 180 Value Destroyed (1099) 1099 Prototype IDs (0) 0 Alien Tech Used (0) 0 Bonus (0) 0 TOTAL SCORE: 3979 Bonus ------- None Cogmind --------- Core Integrity 0/700 Matter 25/300 Energy 100/100 System Corruption 5% Temperature Cool (12) Movement Core (700) Ox13 Location -7/Factory Parts ------- > --- POWER (1) -------- (None) > --- PROPULSION (5) --- (None) > --- UTILITY (4) ------ High-capacity Storage Unit > --- WEAPON (3) ------- (None) > --- INVENTORY (20) --- Aluminum Leg Aluminum Leg Aluminum Leg Carbon-fiber Leg Improved Titanium Leg Improved Titanium Leg Improved Cooling System Small Storage Unit Small Storage Unit Compact Matter Pod (50) Advanced Weight Redist. System Improved Terrain Scanner Advanced Targeting Computer Launcher Guidance Computer Core Analyzer Core Analyzer Improved Medium Armor Plating Improved Shield Generator Advanced Assault Cannon Mini Grenade Launcher Peak State ------------ > --- POWER ------------ Nuclear Core > --- PROPULSION ------- Light Treads Medium Treads Medium Treads Medium Treads Medium Treads > --- UTILITY ---------- Coolant Injector High-capacity Storage Unit Trap Scanner Improved Medium Armor Plating > --- WEAPON ----------- High-powered Shotgun Advanced Assault Cannon Advanced Assault Cannon > --- INVENTORY -------- Aluminum Leg Aluminum Leg Aluminum Leg Carbon-fiber Leg Improved Titanium Leg Improved Titanium Leg Improved Cooling System Small Storage Unit Small Storage Unit Compact Matter Pod Advanced Weight Redist. System Improved Terrain Scanner Advanced Targeting Computer Launcher Guidance Computer Core Analyzer Core Analyzer Improved Medium Armor Plating Improved Shield Generator Advanced Assault Cannon Mini Grenade Launcher [Rating: 48] Favorites ----------- Power Ion Engine Engine Ion Engine Power Core Nuclear Core Propulsion Aluminum Leg Treads Medium Treads Leg Aluminum Leg Utility Small Storage Unit Device Terrain Scanner Storage Small Storage Unit Protection Improved Medium Armor Plating Weapon Assault Rifle Energy Gun Particle Gun Ballistic Gun Assault Rifle Ballistic Cannon Advanced Assault Cannon Launcher Grenade Launcher Build | -11 -10 -10 -10 -9 -8 -7 ------- Run | Yrd Mat Min Exi Min Mat Fac Slots Evolved 6 | . . . . . 4 2 Power . | . . . . . . . Propulsion 3 | . . . . . 2 1 Utility 2 | . . . . . 1 1 Weapon 1 | . . . . . 1 . Parts Attached 39 | 6 4 2 1 1 12 13 Power 3 | 1 . . 1 . 1 . Engine 2 | 1 . . 1 . . . Core 1 | . . . . . 1 . Reactor . | . . . . . . . Propulsion 13 | 2 2 . . . 5 4 Treads 7 | 2 . . . . 1 4 Leg 6 | . 2 . . . 4 . Wheel . | . . . . . . . Hover . | . . . . . . . Flight . | . . . . . . . Utility 11 | 1 1 1 . 1 1 6 Device 5 | . 1 . . . . 4 Storage 4 | 1 . 1 . 1 . 1 Processor . | . . . . . . . Hackware . | . . . . . . . Protection 2 | . . . . . 1 1 Artifact . | . . . . . . . Weapon 12 | 2 1 1 . . 5 3 Energy Gun 1 | . . . . . 1 . Energy Cannon . | . . . . . . . Ballistic Gun 6 | 2 1 . . . 2 1 Ballistic Cannon 4 | . . . . . 2 2 Launcher 1 | . . 1 . . . . Special Weapon . | . . . . . . . Impact Weapon . | . . . . . . . Slashing Weapon . | . . . . . . . Piercing Weapon . | . . . . . . . Special Melee Weapon . | . . . . . . . Unidentified Prototypes . | . . . . . . . Parts Lost 23 | . . 2 . . 7 14 Power 3 | . . 1 . . 1 1 Propulsion 8 | . . . . . 3 5 Utility 5 | . . 1 . . . 4 Weapon 7 | . . . . . 3 4 Highest Loss Streak 5 | . . 2 . . 3 5 To Critical Strikes . | . . . . . . . Average Backups 9 | 3 6 7 6 7 7 15 Power . | . 1 1 . . . . Propulsion 3 | 1 2 3 4 3 . 4 Utility 4 | . 1 1 1 3 5 9 Weapon 1 | . 1 1 1 1 . 1 Tool/Special . | . . . . . . . Unused Backups 17 | . 2 . . 1 1 13 Power . | . . . . . . . Propulsion 3 | . . . . . . 3 Utility 12 | . 1 . . 1 1 9 Weapon 2 | . 1 . . . . 1 Tool/Special . | . . . . . . . Average Slot Usage (%) 91 | . 99 89 100 100 80 88 Engine 6 | . 14 9 14 14 3 . Core 2 | . . . . . 4 5 Treads 13 | . 14 . . . . 30 Leg 16 | . 13 28 28 28 28 2 Device 8 | . 13 8 . . . 13 Storage 14 | . 14 14 28 28 18 8 Protection 3 | . . . . . 7 6 Ballistic Gun 14 | . 28 22 14 14 10 4 Ballistic Cannon 4 | . . . . . 3 13 Launcher 3 | . . 5 14 14 2 . Peak Build Rating 48 | 6 7 7 8 9 23 48 Average Rating 19 | 4 6 6 7 8 16 39 On Entrance 7 | . 6 7 6 8 9 19 Naked Turns . | . . . . . . . Heaviest Build 72 | 13 15 15 20 20 39 72 Greatest Support 141 | 40 40 20 20 20 45 141 Greatest Overweight (x) 16 | . . . . . 1 16 Average Overweight (x) . | . . . . . . . Largest Inventory Capacity 20 | 8 8 8 8 20 8 20 Average Capacity 11 | 6 8 8 8 8 8 18 Most Carried 20 | 5 8 8 8 8 8 20 Average Carried 9 | 3 6 7 6 7 7 15 Final Capacity 20 | 8 8 8 8 8 8 20 Final Carried 20 | 4 8 7 8 8 8 20 Class Distribution -------------------- 73% | Mutant 25% | Tank Dominant Class ---------------- Mutant | -10/Materials Mutant | -10/Mines Mutant | -10/Exiles Mutant | -9/Mines Mutant | -8/Materials Tank | -7/Factory Resources | -11 -10 -10 -10 -9 -8 -7 ----------- Run | Yrd Mat Min Exi Min Mat Fac Matter Collected 1551 | 222 213 145 100 228 393 250 Remotely . | . . . . . . . Salvage Created 1022 | . 213 98 . 50 418 243 Parts 68 | . 10 10 . 8 27 13 Haulers Intercepted . | . . . . . . . Recyclers Shooed 1 | . 1 . . . . . Parts Field Recycled . | . . . . . . . Retrieved Matter . | . . . . . . . Parts Self-Destructed . | . . . . . . . Prevented . | . . . . . . . Kills | -11 -10 -10 -10 -9 -8 -7 ------- Run | Yrd Mat Min Exi Min Mat Fac Combat Hostiles Destroyed 31 | . 5 7 . 3 9 7 Guns 24 | . 5 7 . 3 7 2 Cannons 6 | . . . . . 1 5 AOE 1 | . . . . . 1 . Classes Destroyed 10 | . 1 2 . . 3 4 Worker 2 | . . . . . 1 1 Builder 3 | . . . . . 3 . Watcher 2 | . . . . . . 2 Swarmer 10 | . . 5 . 3 2 . Grunt 11 | . 5 . . . 6 . Brawler 1 | . . . . . 1 . Sentry 4 | . . . . . . 4 Hunter 1 | . . . . . . 1 Programmer 2 | . . . . . . 2 Assembled 2 | . . 2 . . . . Best Kill Streak 5 | . 2 2 . 2 5 2 Combat Bots Only 3 | . 2 2 . 2 3 1 Max Kills in Single Turn 2 | . 1 1 . 1 2 1 Gunslinging . | . . . . . . . Exploded 1 | . . . . . 1 . Melee . | . . . . . . . Uniques/NPCs Destroyed . | . . . . . . . Combat | -11 -10 -10 -10 -9 -8 -7 -------- Run | Yrd Mat Min Exi Min Mat Fac Hostile Shots Fired 516 | . 26 28 . 12 82 368 Missed 166 | . 6 9 . 4 19 128 Hits 350 | . 20 19 . 8 63 240 Melee 6 | . . 2 . . 4 . Projectile 344 | . 20 17 . 8 59 240 Critical Strikes 7 | . . . . . 3 4 Damage Taken 4387 | . 249 226 . 65 985 2862 Core 852 | . 22 29 . 8 89 704 Absorbed by Shields . | . . . . . . . Core Remaining (%) 86 | 100 . . . 76 83 . Volleys Fired 157 | . 28 31 . 11 52 35 Largest 3 | . 2 2 . 1 3 3 Hottest 105 | . 40 50 . 20 105 105 Shots Fired 322 | . 58 58 1 11 97 97 Gun 245 | . 58 56 . 11 91 29 Cannon 73 | . . . . . 5 68 Launcher 4 | . . 2 1 . 1 . Special . | . . . . . . . Kinetic 303 | . 58 56 . 11 81 97 Thermal 15 | . . . . . 15 . Explosive 4 | . . 2 1 . 1 . Electromagnetic . | . . . . . . . Robot Hit Streak 9 | . 9 4 . 2 8 8 Robot Miss Streak 7 | . 4 5 . 6 7 5 Penetration Max . | . . . . . . . Secondary Targets 2 | . . 2 . . . . Max Gunslinging Chain 1 | . . 1 . . . . Shots Hit Robots 173 | . 34 17 . 3 59 60 Core Hits 70 | . 12 10 . 3 24 21 Critical Kills 2 | . . 2 . . . . Critical Parts Destroyed 3 | . 1 1 . . . 1 Critical Strikes 7 | . 1 3 . . . 3 Destroy 5 | . 1 3 . . . 1 Blast 2 | . . . . . . 2 Melee Attacks . | . . . . . . . Impact . | . . . . . . . Slashing . | . . . . . . . Piercing . | . . . . . . . Sneak Attacks . | . . . . . . . Combat Hostiles . | . . . . . . . Follow-up Attacks . | . . . . . . . Damage Inflicted 3055 | . 365 221 . 40 1078 1351 Guns 1806 | . 365 214 . 40 823 364 Cannons 1062 | . . . . . 75 987 Explosions 187 | . . 7 . . 180 . Melee . | . . . . . . . Ramming . | . . . . . . . Kinetic 2725 | . 365 214 . 40 755 1351 Thermal 273 | . . . . . 273 . Explosive 57 | . . 7 . . 50 . Electromagnetic . | . . . . . . . Impact . | . . . . . . . Slashing . | . . . . . . . Piercing . | . . . . . . . Highest Corruption 5 | . 2 2 2 2 2 5 Average Corruption 2 | . 2 2 2 2 2 3 Corruption Purged . | . . . . . . . Corruption Blocked . | . . . . . . . Effects 46 | . 10 5 5 1 6 19 Message Errors 10 | . 3 3 1 . 2 1 Matter Fused 6 | . . 1 . . . 5 Heat Flow Errors 9 | . 1 . . . 1 7 Energy Discharges 5 | . 1 . 1 1 2 . Parts Rejected 1 | . 1 . . . . . Data Loss (minor) 6 | . 1 1 1 . 1 2 Data Loss (major) 4 | . 1 . 1 . . 2 Misfires 4 | . 2 . 1 . . 1 Alerts 1 | . . . . . . 1 Overload Shots . | . . . . . . . Overflow Damage 13 | . . . . . . 13 Projectiles 13 | . . . . . . 13 Explosions . | . . . . . . . Melee . | . . . . . . . Knockbacks 5 | . . . . . 1 4 Impact . | . . . . . . . Kinetic 5 | . . . . . 1 4 Secondary . | . . . . . . . Self-Inflicted Damage 185 | . . 28 . . 68 89 Shots 3 | . . 1 . . 1 1 Rammed . | . . . . . . . Targets Rammed . | . . . . . . . Kicked . | . . . . . . . Crushed . | . . . . . . . Highest Temperature 232 | . 197 13 . . 223 232 Average Temperature 69 | . 42 9 . . 73 73 Received Heat Transfer 1323 | . 138 60 . . 450 675 Siege Activations . | . . . . . . . Martial Activations . | . . . . . . . Shielding Activations . | . . . . . . . Robots Disrupted . | . . . . . . . Combat Hostiles . | . . . . . . . Robots Corrupted . | . . . . . . . Combat Hostiles . | . . . . . . . Parts Fried . | . . . . . . . Impact Corruptions . | . . . . . . . Robots Melted . | . . . . . . . Combat Hostiles . | . . . . . . . Parts Melted . | . . . . . . . Heat Transferred 433 | . . . . . 433 . Parts Sabotaged . | . . . . . . . Parts Stolen . | . . . . . . . Parts Stripped . | . . . . . . . Power Chain Reactions . | . . . . . . . Alert | -11 -10 -10 -10 -9 -8 -7 ------- Run | Yrd Mat Min Exi Min Mat Fac Maximum Alert Level . | . . . . . . . Low Security (%) 100 | 100 100 100 . 100 100 100 Level 1 . | . . . . . . . Level 2 . | . . . . . . . Level 3 . | . . . . . . . Level 4 . | . . . . . . . Level 5 . | . . . . . . . High Security . | . . . . . . . Max Security . | . . . . . . . Peak Influence 155 | . 42 95 . 85 155 76 Initial 39 | . . . . . 25 39 Average 25 | . 7 17 . 46 82 18 Influence Increases 1092 | . 130 200 . 115 335 312 Destroy 0b10 Robot/C 580 | . 100 100 . 60 180 140 Destroy 0b10 Robot/NC 35 | . . . . . 20 15 Destroy Leader 164 | . 30 20 . 10 30 74 Disable Machine 60 | . . . . . 15 45 Destroy Structure 73 | . . 5 . . 30 38 Lose Combat Pursuer 180 | . . 75 . 45 60 . Influence Decreases 1092 | . 130 200 . 50 313 399 Entered New Map 88 | . . . . . 40 48 Time Decay 854 | . 130 160 . 50 203 311 Lost Part 130 | . . 20 . . 70 40 Lost Ally 20 | . . 20 . . . . Squads Dispatched 10 | . 2 . . . 1 7 Investigation . | . . . . . . . Extermination 2 | . . . . . . 2 Reinforcement 4 | . 2 . . . 1 1 Assault . | . . . . . . . Garrison 4 | . . . . . . 4 Intercept . | . . . . . . . Searches Triggered . | . . . . . . . Construction Impeded 2 | . . . . . 1 1 Haulers Reinforced . | . . . . . . . Active Scanning Responses . | . . . . . . . Cargo Convoy Interrupts . | . . . . . . . Stealth | -11 -10 -10 -10 -9 -8 -7 --------- Run | Yrd Mat Min Exi Min Mat Fac Distress Signals 1 | . . . . . . 1 Communications Jammed . | . . . . . . . Distress Signals . | . . . . . . . Times Spotted 63 | . 12 12 . 4 16 19 Peak Tracking Total 8 | . 3 3 . 3 5 8 Tactical Retreats 10 | . . 5 . 1 4 . Traps | -11 -10 -10 -10 -9 -8 -7 ------- Run | Yrd Mat Min Exi Min Mat Fac Traps Triggered 2 | . 1 . . . . 1 Indirectly . | . . . . . . . Trap Hack Attempts . | . . . . . . . Triggered . | . . . . . . . Disarmed . | . . . . . . . Reprogrammed . | . . . . . . . Reused . | . . . . . . . Traps Extracted . | . . . . . . . Installed . | . . . . . . . Triggered . | . . . . . . . Machines | -11 -10 -10 -10 -9 -8 -7 ---------- Run | Yrd Mat Min Exi Min Mat Fac Machines Disabled 4 | . . . . . 1 3 Max in Single Turn 1 | . . . . . 1 1 Machines Repaired . | . . . . . . . Machines Dismantled . | . . . . . . . Machines Sabotaged . | . . . . . . . Overloaded Fab Kills . | . . . . . . . Hacking | -11 -10 -10 -10 -9 -8 -7 --------- Run | Yrd Mat Min Exi Min Mat Fac Machines Accessed . | . . . . . . . Terminals . | . . . . . . . Fabricators . | . . . . . . . Repair Stations . | . . . . . . . Recycling Units . | . . . . . . . Scanalyzers . | . . . . . . . Garrison Access . | . . . . . . . Total Hacks . | . . . . . . . Successful . | . . . . . . . Failed . | . . . . . . . Catastrophic . | . . . . . . . Database Lockouts . | . . . . . . . Manual . | . . . . . . . Terminals . | . . . . . . . Fabricators . | . . . . . . . Repair Stations . | . . . . . . . Recycling Units . | . . . . . . . Scanalyzers . | . . . . . . . Garrison Access . | . . . . . . . Terminal Hacks . | . . . . . . . Fabricator Hacks . | . . . . . . . Repair Station Hacks . | . . . . . . . Recycling Unit Hacks . | . . . . . . . Scanalyzer . | . . . . . . . Garrison Access Hacks . | . . . . . . . Unauthorized Hacks . | . . . . . . . Terminals . | . . . . . . . Fabricators . | . . . . . . . Repair Stations . | . . . . . . . Recycling Units . | . . . . . . . Scanalyzers . | . . . . . . . Garrison Access . | . . . . . . . Data Cores Recovered . | . . . . . . . Used . | . . . . . . . Hacking Detections . | . . . . . . . Full Trace Events . | . . . . . . . Feedback Events . | . . . . . . . Feedback Blocked . | . . . . . . . Robot Schematics Acquired . | . . . . . . . Robots Built . | . . . . . . . Authchips . | . . . . . . . Time . | . . . . . . . Total Robot Build Rating . | . . . . . . . Part Schematics Acquired . | . . . . . . . Parts Built . | . . . . . . . Authchips . | . . . . . . . Time . | . . . . . . . Total Part Build Rating . | . . . . . . . Parts Repaired . | . . . . . . . Time . | . . . . . . . Parts Recycled . | . . . . . . . Recycled Matter . | . . . . . . . Retrieved Matter . | . . . . . . . Retrieved Components . | . . . . . . . Parts Scanalyzed . | . . . . . . . Part Schematics Acquired . | . . . . . . . Parts Damaged . | . . . . . . . Bothacking | -11 -10 -10 -10 -9 -8 -7 ------------ Run | Yrd Mat Min Exi Min Mat Fac Used RIF Installer . | . . . . . . . Robots Hacked . | . . . . . . . Non-combat . | . . . . . . . Combat . | . . . . . . . Robot Hacks Applied . | . . . . . . . Relay Couplers Released . | . . . . . . . Fabnet Peak Effective % . | . . . . . . . Robots Rewired . | . . . . . . . Allies Hacked . | . . . . . . . Hacks Repelled . | . . . . . . . Allies | -11 -10 -10 -10 -9 -8 -7 -------- Run | Yrd Mat Min Exi Min Mat Fac Total Allies 2 | . . 2 . . . . Largest Group 2 | . . 2 . . . . Highest-Rated Group 46 | . . 46 . . . . Highest-Rated Ally 31 | . . 31 . . . . Total Orders . | . . . . . . . Ally Attacks 2 | . . 2 . . . . Total Damage 22 | . . 22 . . . . Kills . | . . . . . . . Allies Corrupted . | . . . . . . . Allies Melted 1 | . . 1 . . . . Intel | -11 -10 -10 -10 -9 -8 -7 ------- Run | Yrd Mat Min Exi Min Mat Fac Active Infowar (turns) 2395 | . 733 465 . . . 1197 Terrain 1198 | . 733 465 . . . . Traps 1197 | . . . . . . 1197 Robot Analysis Total . | . . . . . . . Derelict Logs Recovered 1 | . . . . 1 . . Drone Launches . | . . . . . . . Drone Recoveries . | . . . . . . . Exploration | -11 -10 -10 -10 -9 -8 -7 ------------- Run | Yrd Mat Min Exi Min Mat Fac Turns Passed 4238 | 91 792 753 501 152 510 1439 Spaces Moved 2514 | 54 500 528 416 104 248 664 Core 15 | 8 . . . . . 7 Treads 795 | 46 208 . . . . 541 Legs 1704 | . 292 528 416 104 248 116 Wheels . | . . . . . . . Hover . | . . . . . . . Flight . | . . . . . . . Fastest Speed 50 | 50 120 120 120 120 120 120 Average Speed 134 | 143 136 120 120 120 127 156 Slowest Speed 850 | 160 160 120 120 120 190 850 Overloaded Moves . | . . . . . . . Propulsion Burnouts . | . . . . . . . Robots Hopped . | . . . . . . . Potential Cave-ins . | . . . . . . . Cave-ins Triggered . | . . . . . . . Exploration Rate (%) 48 | 5 80 97 86 25 24 22 Regions Visited 6 Branch Regions 3 Pre-discovered Areas . | . . . . . . . Known Exits Taken 1 | . . . . . 1 . Unknown Exits Taken 5 | 1 1 1 1 1 . . Scrap Searched . | . . . . . . . Spaces Dug . | . . . . . . . Terrain Destroyed 77 | . . 5 3 . 26 43 Melee . | . . . . . . . Projectile 8 | . . . . . 2 6 AOE 69 | . . 5 3 . 24 37 Terrain Rammed . | . . . . . . . Walls Destroyed . | . . . . . . . Machines Disabled . | . . . . . . . Actions | -11 -10 -10 -10 -9 -8 -7 --------- Run | Yrd Mat Min Exi Min Mat Fac Total 3098 | 67 558 589 418 120 352 994 Wait 323 | . 12 27 . . 29 255 Move 2508 | 53 499 527 415 103 247 664 Hop . | . . . . . . . Pick Up 46 | 8 9 1 2 2 7 17 Fast Attach 16 | 2 2 . . . 6 6 Attach 20 | 4 2 1 1 . 6 6 Detach 4 | . . . . . 1 3 Swap 6 | . 1 1 . 2 . 2 Drop 18 | . 5 1 . 2 4 6 Fire 157 | . 28 31 . 11 52 35 Melee . | . . . . . . . Ram . | . . . . . . . Kick . | . . . . . . . Crush . | . . . . . . . Escape Stasis . | . . . . . . . Rewire . | . . . . . . . Trap . | . . . . . . . Miscellaneous . | . . . . . . . Route ------- -11/Scrapyard -10/Materials (discovered 5 exits: [*Mat x2] / [*Min x2] / [*Sub]) -10/Mines (discovered 4 exits: [*Mat x2] / *Exi / [Sub]) -10/Exiles (discovered 2 exits: [*Min x2]) -9/Mines -8/Materials (discovered 2 exits: *Fac x2) -7/Factory History --------- Turn | Location | Event 12 | -11/Scrapyard | Discovered new exit (range 14) 92 | -11/Scrapyard | Entered Materials 266 | -10/Materials | Discovered new exit (range 5) 306 | -10/Materials | Discovered new exit (range 16) 317 | -10/Materials | Build established: Mutant 338 | -10/Materials | Discovered new exit (range 6) 383 | -10/Materials | Discovered new exit (range 13) 588 | -10/Materials | Discovered new exit (range 11) 884 | -10/Materials | Entered Mines 900 | -10/Mines | Met a Derelict bent on vengeance 989 | -10/Mines | Discovered new exit (range 10) 1032 | -10/Mines | Discovered new exit (range 14) 1312 | -10/Mines | Excavation squad dispatched 1312 | -10/Mines | A large section of the Mines collapsed 1515 | -10/Mines | Deemed a non-threat by the Exiles lab entrance 1515 | -10/Mines | Discovered new exit (range 5) 1566 | -10/Mines | Discovered new exit (range 6) 1637 | -10/Mines | Entered Exiles 1637 | -10/Exiles | Found Exiles lab destroyed 1659 | -10/Exiles | Discovered new exit (range 15) 2124 | -10/Exiles | Discovered new exit (range 14) 2138 | -10/Exiles | Entered Mines 2175 | -9/Mines | Found a damaged Exp. Sensor Array with a note attached 2181 | -9/Mines | Found Prototype Device 2278 | -9/Mines | Discovered new exit (range 11) 2290 | -9/Mines | Entered Materials 2290 | -8/Materials | Evolved 4 slots: Propulsion x2, Utility x1, Weapon x1 2291 | -8/Materials | Identified exit to Factory 2624 | -8/Materials | Lost 3 parts (1n2w) 2792 | -8/Materials | Discovered exit to Factory (range 4) 2800 | -8/Materials | Entered Factory 2800 | -7/Factory | Evolved 2 slots: Propulsion x1, Utility x1 3211 | -7/Factory | Garrison activated, responded to threat 3233 | -7/Factory | Garrison activated, responded to threat 3251 | -7/Factory | Build established: Tank 4112 | -7/Factory | Lost 4 parts (2n2w) 4221 | -7/Factory | Build established: Mutant 4229 | -7/Factory | Core integrity fell below 50% 4235 | -7/Factory | Core integrity fell below 20% 4239 | -7/Factory | Destroyed by Y-54 Guardian with Gatling Laser Last Messages --------------- 04098_ System corrupted: Substantial component data lost. 04105_ U-05 Engineer works on Subcomponent Replicator. 04114_ Slug penetrates Wall. 04114_ Imp. Medium Armor Plating destroyed. 04119_ Slug penetrates Wall. 04137_ System corrupted: Heat flow error (+237). 04162_ Acquired Adv. Assault Cannon. 04171_ System corrupted: Matter fused (-1). 04180_ Fusion Modulator explodes. 04203_ W-25 Informer sends out distress signal. 04211_ Med. Treads destroyed. 04213_ System corrupted: Heat flow error (+117). 04218_ Trap Scanner destroyed. 04222_ Adv. Assault Cannon destroyed. 04227_ Coolant Injector destroyed. 04229_ Critical hit (Burn: +37). 04237_ System corrupted: Substantial component data lost. Map ----- +----------------------------------------------------+ | ????????????????????# #????????????????? | | ????????????????????# ####+######????????????? | | ????????????????????# #[ #????????????? | | ????????????????????# # """" #????????????? | | ??????????#######+### # """" #????????????? | | ????????? # / """" #????????????? | | ????????? / """" #????????????? | | ???????? # ! """" ?????????????? | | ???????? # """" ?????????????? | | ???????? #/ = #????????????? | | ??????????? ########## ###########????????????? | | ????????????# # ########???????????????? | | ????????????# "" # #?????????????? | | ????????????+ "" + #?????????????? | | ????????????# "" # #?????????????? | | ????????????# "Y ##+####+##### #?????????????? | | ????????????# "" ][ #??????? ^??????????????????? | | ????????????# "" [[ #???????? #????????????????? | | ????????????# "" [ #????????? #????????????????? | | ????????????# ! #??????????#????????????????? | | ????????????# = #???????????????????????????? | | ????????????# #???????????????????????????? | | ????????????#######+##???????????????????????????? | | ??????????????????# #????????????????????????????? | | ????# ##### #######+######???????????????? | | ????# g @ ????????? | | ???? Y g ????????? | | ???? / g g ????????? | | ????? ?????????? | | ????? ?????????? | | ?????? ??????????? | | ?????? ??????????? | | ?????? ####+#################+##??????????? | | ???????#######??? ??????????????????????????????? | | ?????????????????""??????????????????????????????? | | ?????????????????""??????????????????????????????? | | ?????????????????????????????????????????????????? | | ?????????????????????????????????????????????????? | | ?????????????????????????????????????????????????? | | ?????????????????????????????????????????????????? | | ?????????????????????????????????????????????????? | | ?????????????????????????????????????????????????? | | ?????????????????????????????????????????????????? | | ?????????????????????????????????????????????????? | | ?????????????????????????????????????????????????? | | ?????????????????????????????????????????????????? | | ?????????????????????????????????????????????????? | | ?????????????????????????????????????????????????? | | ?????????????????????????????????????????????????? | | ?????????????????????????????????????????????????? | +----------------------------------------------------+ Best States ------------- Heat Dissipation 34 Coolant Potential 65 Energy Generation 14 Energy Capacity 250 Matter Stores 350 Matter Capacity 450 Sight Range 16 Terrain Scan Range 14 Terrain Scan Density 10 Additional Mass Support 9 Armor Coverage 225 Evasion (%) 55 Recoil Reduction 5 Item Schematics ----------------- None Robot Schematics ------------------ None Fabricated ------------ Nothing Repaired ---------- Nothing Alien Tech Used ----------------- None Achievements -------------- None Challenges ------------ None Game ------ Seed MagneticBurstLauncher Manual? 0 Play Time 01:04:51 Cumulative 4.5 hours Start 2025.06.21 @ 20:59:44 End 2025.06.21 @ 22:19:55 Sessions 1 Manual Loads 0 Difficulty Rogue Special Mode None Game No. 4 Rogue 4 Adventurer 0 Explorer 0 Win Type - Total 0 Types 0/0/0/0/0/0/0/0/0/0 Lore% 2 Gallery% 5 Achievement% 9 Wizard Run 0 Options --------- Layout 1 ASCII 0 Keyboard 0 Movement Mouse Keybinds 0 Fullscreen 1 Font 32/SmallcapsGlow Map View 50x35 Zoom Use 0% Tactical HUD 1 Map Filters NONE Filters NONE Steam 1 RUN: 326ebf10-8309-48d8-9920-71634031e16b